bitfinex/quotes_ETHUSD_20240828
["timestamp","ask_amount","ask_price","bid_price","bid_amount"]
[1724871311450,0.05,2545.2,2542.2,7.39030372]
[1724871311451,2.2699,2544.2,2543.4,3.93172]
[1724871311739,2.2699,2544.2,2543.2,3.93204]
[1724871311740,3.93001,2544.6,2543.8,3.93112]
[1724871311947,6.592562,2544.8,2543.9,0.07860905]
[1724871311948,2.2699,2544.8,2543.9,0.07860905]
[1724871312249,3.92896,2545.2,2544.2,3.93049]
[1724871312471,6.19886,2545.2,2544.2,3.93049]
[1724871312770,6.19886,2545.2,2543.6,3.3951]
[1724871312771,0.44261942,2545.1,2543.8,3.93111]
[1724871312900,0.44261942,2545.1,2544.3,0.07889682]
[1724871313099,2.2699,2545.2,2544.2,3.9305]
[1724871313414,6.19888,2545.2,2544.5,3.92997]
[1724871313621,2.2699,2545.2,2544.3,0.0788846]
[1724871313958,3.92957,2544.9,2544.6,0.07852375]
[1724871314097,3.92957,2544.9,2544.1,3.93063]
[1724871314318,3.92957,2544.9,2544.0,3.9308]
[1724871314319,3.92957,2544.9,2544.7,0.07840349]
[1724871314540,3.92957,2544.9,2544.2,3.9305]
[1724871314851,2.2699,2545.2,2544.8,3.92957]
[1724871315002,2.2699,2545.2,2544.6,3.92987]
[1724871315203,2.2699,2545.2,2544.4,3.93012]
[1724871315402,2.2699,2545.2,2544.1,3.93059]
[1724871315758,2.2699,2545.2,2544.5,3.92999]
[1724871316063,2.2699,2545.2,2544.6,0.07858801]
[1724871316349,2.2699,2545.2,2544.5,3.92999]
[1724871316550,2.2699,2545.2,2544.1,4.605456]
[1724871316551,3.92973,2544.7,2544.1,4.605456]
[1724871316839,2.2699,2545.2,2543.3,0.393195]
[1724871316840,3.93018,2544.5,2543.8,3.9311]
[1724871317011,3.93038,2544.3,2543.4,3.9317]
[1724871317341,3.93038,2544.3,2542.8,3.93254]
[1724871317342,3.93068,2544.1,2543.2,3.93198]
[1724871317528,3.93139,2543.7,2542.8,3.93262]
[1724871317699,3.93114,2543.8,2542.9,4.01106961]
[1724871317700,3.93147,2543.6,2542.9,4.01106961]
[1724871317901,6.32829,2543.7,2543.0,3.93224]
[1724871318347,2.397,2543.7,2543.1,0.07863558]
[1724871318517,6.32839,2543.7,2543.0,3.93224]
[1724871318723,3.93114,2543.8,2543.1,0.07863566]
[1724871318912,3.93089,2544.0,2543.2,3.93192]
[1724871319113,2.397,2544.2,2543.4,3.93168]
[1724871319413,2.397,2544.2,2543.0,3.93232]
[1724871319414,3.93147,2543.6,2543.0,3.93226]
[1724871319750,3.93175,2543.4,2542.6,3.93295]
[1724871319949,2.397,2543.5,2542.8,3.93255]
[1724871320259,2.397,2543.5,2543.1,3.9322]
[1724871320413,2.397,2544.0,2543.3,3.93178]
[1724871320628,2.397,2544.0,2543.6,3.93135]
[1724871320823,2.397,2544.0,2543.4,3.93163]
[1724871321157,3.93041,2544.3,2543.7,3.93126]
[1724871321360,7.8609,2544.3,2543.6,3.93128]
[1724871321665,2.397,2544.4,2543.5,0.07862228]
[1724871321840,3.93083,2544.0,2543.4,3.93163]
[1724871322028,2.85213296,2544.4,2543.5,3.93145]
[1724871322029,3.9308,2544.1,2543.5,3.93145]
[1724871322227,3.9304,2544.3,2543.6,3.93143]
[1724871322451,3.9304,2544.3,2543.4,3.93162]
[1724871322452,3.9307,2544.1,2543.4,3.93162]
[1724871322780,2.397,2544.4,2543.2,3.93201]
[1724871322781,3.93094,2544.0,2543.2,3.93201]
[1724871322922,2.397,2544.4,2542.9,2.378]
[1724871322923,1.08787296,2544.2,2543.0,3.93223]
[1724871323142,1.08787296,2544.2,2542.6,3.93294]
[1724871323143,3.93166,2543.5,2542.8,3.9326]
[1724871323348,3.93166,2543.5,2542.8,3.93256]
[1724871323546,3.93191,2543.3,2542.6,3.93287]
[1724871323777,3.93191,2543.3,2542.7,3.93282]
[1724871324000,2.3414,2544.0,2542.6,3.93287]
[1724871324001,3.93114,2543.8,2542.6,3.93287]
[1724871324186,4.558401,2543.8,2542.6,4.44691304]
[1724871324486,7.09580372,2543.2,2542.0,4.32888]
[1724871324692,3.93293,2542.7,2542.0,3.93378]
[1724871324848,3.93293,2542.7,2541.8,3.93415]
[1724871325051,3.93293,2542.7,2541.9,3.93404]
[1724871325279,3.93347,2542.3,2541.6,3.93443]
[1724871325488,6.41407,2542.3,2541.6,3.93443]
[1724871325659,6.41407,2542.3,2541.7,3.93433]
[1724871325985,3.93283,2542.7,2542.0,3.93376]
[1724871326191,3.9332,2542.5,2541.2,2.3402]
[1724871326351,3.9332,2542.5,2541.8,3.93414]
[1724871326352,3.93329,2542.4,2541.8,3.93414]
[1724871326547,2.4806,2542.8,2541.9,3.93391]
[1724871326548,3.93289,2542.7,2541.9,3.93391]
[1724871326752,3.93289,2542.7,2541.3,3.93493]
[1724871326753,2.3654,2542.1,2541.3,3.93493]
[1724871326964,2.3654,2542.5,2541.7,3.93432]
[1724871327196,2.3654,2542.9,2542.0,3.93379]
[1724871327483,3.93334,2542.4,2542.1,0.08017701]
[1724871327854,3.93334,2542.4,2541.6,3.93437]
[1724871327855,7.86677,2542.4,2541.6,3.93437]
[1724871328053,3.93279,2542.8,2542.2,0.08005652]
[1724871328285,6.29798,2542.9,2542.0,3.93377]
[1724871328563,3.933,2542.6,2542.3,0.07993603]
[1724871328875,2.3654,2542.9,2542.6,3.93295]
[1724871329051,2.3654,2542.9,2542.4,4.01299555]
[1724871329251,2.3654,2542.9,2542.4,0.07981555]
[1724871329252,6.29803,2542.9,2542.4,0.07981555]
[1724871329455,3.93355,2542.3,2541.6,3.93442]
[1724871329769,6.39065,2542.4,2541.3,0.07868078]
[1724871329969,2.4573,2542.4,2541.7,3.93425]
[1724871330150,2.4573,2542.4,2541.8,3.9342]
[1724871330587,2.4573,2542.4,2540.7,0.22585]
[1724871330588,6.3906,2542.4,2541.4,3.93472]
[1724871330809,3.93371,2542.2,2541.5,3.93466]
[1724871330987,3.93378,2542.1,2541.5,3.93467]
[1724871331497,2.4573,2543.0,2542.0,3.93387]
[1724871331696,2.4573,2543.0,2542.2,3.93347]
[1724871331697,6.38972,2543.0,2542.2,3.93347]
[1724871332001,3.93277,2542.8,2542.2,3.93345]
[1724871332423,2.4573,2543.0,2542.2,0.8339361]
[1724871332627,2.4573,2543.0,2542.6,3.93288]
[1724871332824,6.38909,2543.4,2542.6,3.93288]
[1724871332968,6.38909,2543.4,2542.9,3.93241]
[1724871332969,2.4573,2543.4,2542.9,3.93241]
[1724871333174,6.38849,2543.8,2543.1,3.9321]
[1724871333393,3.93147,2543.6,2543.0,7.86451]
[1724871333593,2.4573,2543.8,2542.9,0.07864515]
[1724871333812,3.93223,2543.1,2542.6,3.93287]
[1724871334119,3.93222,2543.1,2542.5,3.93302]
[1724871334327,3.93222,2543.1,2542.0,2.6536]
[1724871334328,2.4573,2543.3,2542.2,3.93354]
[1724871334608,3.93267,2542.8,2542.2,3.93354]
[1724871334780,2.4573,2543.3,2542.2,3.93354]
[1724871334781,3.93264,2542.9,2542.2,3.9335]
[1724871334983,3.93227,2543.1,2542.5,3.93309]
[1724871335313,2.4573,2543.3,2543.0,3.93233]
[1724871335481,2.4573,2543.3,2542.8,3.93264]
[1724871336187,2.4573,2543.3,2542.5,0.786648]
[1724871336188,3.93217,2543.2,2542.5,3.93312]
[1724871336397,3.93217,2543.2,2542.2,3.93352]
[1724871336398,0.638907,2543.2,2542.2,3.93352]
[1724871336708,2.4573,2543.3,2542.2,3.93352]
[1724871336709,3.93279,2542.8,2542.2,3.93352]
[1724871337222,6.38924,2543.3,2542.4,3.93328]
[1724871337223,3.93243,2543.0,2542.4,3.93328]
[1724871337374,3.93211,2543.2,2542.4,4.7199]
[1724871337575,2.4573,2543.3,2542.2,7.86702]
[1724871337576,3.93261,2542.9,2542.2,7.86702]
[1724871337829,3.93261,2542.9,2542.2,3.9335]
[1724871338127,0.24573,2543.2,2541.9,0.07865788]
[1724871338340,2.3724,2542.8,2542.0,3.93385]
[1724871338477,4.61520372,2543.5,2542.1,0.07866748]
[1724871338478,2.3724,2543.5,2542.1,0.07866748]
[1724871338677,7.86399,2543.3,2542.6,3.93294]
[1724871339026,2.3724,2543.5,2542.1,0.47991423]
[1724871339027,2.3724,2543.5,2542.7,4.01137388]
[1724871339232,2.3724,2544.0,2543.0,3.93222]
[1724871339391,3.93098,2543.9,2543.1,0.07864074]
[1724871339726,7.86207,2543.9,2543.2,3.93204]
[1724871339929,3.93152,2543.6,2543.0,3.93225]
[1724871340075,3.93146,2543.6,2543.3,0.07866243]
[1724871340275,3.93146,2543.6,2542.9,3.9324]
[1724871340477,3.93137,2543.7,2543.4,0.07854205]
[1724871340725,3.93123,2543.8,2542.9,3.9324]
[1724871340726,4.6246308,2543.8,2542.9,3.9324]
[1724871340879,0.41184307,2543.5,2543.1,3.93217]
[1724871341078,0.41184307,2543.5,2542.9,3.9324]
[1724871341079,0.41184307,2543.5,2543.4,3.93174]
[1724871341278,0.41184307,2543.5,2543.0,2.53312592]
[1724871341524,0.41184307,2543.5,2542.9,3.93244]
[1724871341698,0.41184307,2543.5,2542.2,0.44137142]
[1724871341699,2.3724,2543.4,2542.5,3.93303]
[1724871341875,10.2361,2543.4,2542.7,3.93281]
[1724871342075,3.93203,2543.3,2542.5,3.93303]
[1724871342310,3.93203,2543.3,2542.5,3.93299]
[1724871342501,2.3724,2543.4,2542.8,3.93265]
[1724871342701,2.3724,2543.4,2542.6,0.07950539]
[1724871342902,3.932,2543.3,2542.9,0.07906681]
[1724871343086,3.932,2543.3,2542.7,3.93269]
[1724871343289,3.932,2543.3,2543.0,0.07894638]
[1724871343491,3.93206,2543.2,2543.0,0.07894638]
[1724871343694,3.93206,2543.2,2542.5,3.93302]
[1724871343888,3.932,2543.3,2543.1,0.07891136]
[1724871344120,3.932,2543.3,2542.6,3.93287]
[1724871344317,7.86403,2543.3,2543.2,0.07879096]
[1724871344616,3.93206,2543.2,2542.6,3.93287]
[1724871344931,7.86488,2543.0,2542.3,3.93332]
[1724871345113,3.93234,2543.1,2542.1,3.93368]
[1724871345419,2.3724,2543.4,2542.8,3.93255]
[1724871345832,2.3724,2543.4,2542.9,3.93249]
[1724871346175,0.41184307,2543.5,2543.4,7.86348]
[1724871346534,0.41184307,2543.5,2543.4,3.93174]
[1724871347057,0.41184307,2543.5,2543.0,0.47374721]
[1724871347058,0.41184307,2543.5,2543.3,3.93188]
[1724871347261,0.41184307,2543.5,2543.4,3.93174]
[1724871347773,0.41184307,2543.5,2542.9,8.258085]
[1724871347976,0.41184307,2543.5,2542.9,3.9324]
[1724871348296,3.93198,2543.3,2542.5,3.93305]
[1724871348565,3.93224,2543.1,2542.5,3.93304]
[1724871348778,3.93224,2543.1,2542.3,3.93337]
[1724871348779,3.93254,2542.9,2542.3,3.93333]
[1724871348982,6.34734,2542.9,2542.1,4.326988]
[1724871349133,3.93285,2542.7,2542.1,4.326988]
[1724871349338,3.93285,2542.7,2542.2,3.93359]
[1724871349598,3.93285,2542.7,2542.1,3.93362]
[1724871349894,6.982124,2542.9,2541.9,3.93403]
[1724871349895,3.049534,2542.9,2541.9,3.93403]
[1724871350094,3.93284,2542.7,2542.0,3.93386]
[1724871350669,3.93307,2542.6,2542.0,3.93386]
[1724871350878,6.34737,2542.9,2542.2,3.93344]
[1724871351084,6.34735,2542.9,2542.0,3.9338]
[1724871351251,2.4148,2542.9,2542.0,7.86763]
[1724871351456,2.4148,2542.9,2541.7,0.07866627]
[1724871351457,6.34737,2542.9,2541.7,3.93425]
[1724871351776,2.4148,2542.4,2541.3,0.3951]
[1724871351983,3.9337,2542.2,2541.5,3.93454]
[1724871352199,4.17505,2542.3,2541.5,3.93454]
[1724871352355,3.93386,2542.1,2541.5,3.93454]
[1724871352555,3.93386,2542.1,2541.3,3.93493]
[1724871352556,3.93386,2542.1,2541.4,3.9347]
[1724871352754,3.93386,2542.1,2540.7,0.22585]
[1724871352755,0.86959065,2542.1,2541.1,3.93524]
[1724871352956,3.93432,2541.8,2541.1,3.93524]
[1724871353294,3.93444,2541.7,2541.1,3.93522]
[1724871353516,7.86831,2541.9,2541.3,3.93499]
[1724871353795,3.93411,2541.9,2541.2,0.07869462]
[1724871353990,3.93453,2541.6,2541.1,3.93522]
[1724871354758,3.93453,2541.6,2540.9,3.9355]
[1724871355082,2.4148,2542.1,2541.0,0.07869965]
[1724871355298,3.93432,2541.8,2541.2,3.93514]
[1724871355600,7.86865,2541.8,2541.1,3.93518]
[1724871355762,3.93471,2541.5,2540.9,3.93554]
[1724871355963,6.34951,2541.5,2540.9,3.93549]
[1724871357101,6.34951,2541.5,2540.1,3.93679]
[1724871357102,3.93495,2541.4,2541.0,0.08206871]
[1724871357309,3.93554,2541.0,2540.3,7.95160583]
[1724871357511,3.93554,2541.0,2540.3,3.93643]
[1724871357683,3.93521,2541.2,2540.6,3.93596]
[1724871358020,3.93521,2541.2,2540.7,0.08243058]
[1724871358021,3.93576,2540.8,2540.7,0.08243058]
[1724871358230,10.28632,2540.8,2540.7,0.08243058]
[1724871358508,3.93618,2540.6,2539.9,3.93705]
[1724871358685,3.93641,2540.4,2539.7,7.87473]
[1724871358873,3.93641,2540.4,2539.8,3.93731]
[1724871359071,3.93641,2540.4,2539.9,0.08339598]
[1724871359305,3.93654,2540.3,2539.7,4.331096]
[1724871359608,2.4148,2541.4,2540.6,3.93604]
[1724871359811,3.93509,2541.3,2540.6,3.93604]
[1724871360015,3.93509,2541.3,2540.7,0.08243058]
[1724871360526,4.61520372,2542.0,2540.7,0.08243058]
[1724871360527,4.34658322,2541.7,2541.0,3.93534]
[1724871360672,3.934,2542.0,2541.4,3.93482]
[1724871361025,2.4148,2542.1,2540.8,6.34451]
[1724871361026,3.93418,2541.9,2541.5,0.08146579]
[1724871361190,3.9344,2541.7,2541.5,0.08146579]
[1724871361509,3.9344,2541.7,2541.1,3.93519]
[1724871361713,3.9344,2541.7,2540.8,3.93566]
[1724871361714,3.93476,2541.5,2540.8,3.93566]
[1724871361873,4.784746,2541.7,2541.0,3.93544]
[1724871362244,3.93413,2541.9,2541.1,0.08194811]
[1724871362543,3.93279,2542.8,2541.7,3.93431]
[1724871362674,2.4148,2543.3,2542.2,3.93355]
[1724871362873,2.4148,2543.3,2542.0,2.4088]
[1724871362874,2.4148,2543.3,2542.7,3.93273]
[1724871363075,3.93118,2543.8,2542.8,0.15854213]
[1724871363324,2.3709,2543.8,2543.3,3.93175]
[1724871363617,2.3709,2543.8,2542.8,4.0125193]
[1724871363618,3.93144,2543.6,2542.8,4.0125193]
[1724871363917,2.3709,2543.4,2542.5,0.3951]
[1724871364240,2.3709,2543.4,2542.0,3.93378]
[1724871364241,3.93286,2542.7,2542.0,3.93378]
[1724871364420,0.393286,2542.6,2542.0,3.93378]
[1724871364573,3.93314,2542.5,2541.8,3.93421]
[1724871364803,3.93314,2542.5,2541.9,3.93396]
[1724871365000,3.93314,2542.5,2541.8,7.86833]
[1724871365499,3.93314,2542.5,2541.8,3.93412]
[1724871365839,3.93314,2542.5,2541.8,3.93411]
[1724871366045,1.08318486,2542.5,2541.4,4.3298]
[1724871366255,3.93367,2542.2,2541.6,3.93447]
[1724871366398,6.89879864,2542.6,2541.2,3.93506]
[1724871366598,3.93377,2542.1,2541.5,3.93453]
[1724871366848,3.93363,2542.2,2541.5,3.93453]
[1724871367199,3.93363,2542.2,2541.5,7.86911]
[1724871367398,3.93363,2542.2,2541.5,3.93453]
[1724871367635,3.93407,2541.9,2541.3,3.93488]
[1724871367839,3.934,2542.0,2541.3,3.93488]
[1724871368209,3.93406,2541.9,2541.3,3.93488]
[1724871368459,3.93367,2542.2,2541.5,3.93461]
[1724871368639,3.93367,2542.2,2541.5,4.328071]
[1724871368859,3.93367,2542.2,2541.5,3.93461]
[1724871369143,3.93367,2542.2,2541.4,0.07868811]
[1724871369144,6.43580437,2543.8,2541.7,4.155]
[1724871369447,3.93246,2543.0,2542.2,3.93356]
[1724871369652,7.86424,2543.2,2542.3,0.07865454]
[1724871369943,3.93171,2543.5,2542.8,3.93264]
[1724871370171,3.93171,2543.5,2541.8,11.54936372]
[1724871370172,3.93206,2543.2,2541.0,3.93541]
[1724871370465,3.93388,2542.1,2541.4,3.93476]
[1724871370602,3.93369,2542.2,2541.4,3.93476]
[1724871370803,3.93375,2542.1,2541.4,3.93474]
[1724871371101,3.934,2542.0,2541.4,3.93474]
[1724871371300,4.60473014,2542.0,2541.4,3.93474]
[1724871371649,2.3097,2542.3,2541.8,3.93415]
[1724871371800,2.98043014,2542.3,2541.4,3.93477]
[1724871372005,0.96877315,2542.2,2541.0,0.433067]
[1724871372231,3.93401,2542.0,2541.5,0.07845329]
[1724871372508,4.60474014,2542.0,2541.6,0.07833274]
[1724871372832,5.48838745,2542.0,2541.5,3.93468]
[1724871373012,0.67073014,2542.0,2541.7,4.01249219]
[1724871373219,0.67073014,2542.0,2541.7,3.93428]
[1724871373431,3.93406,2541.9,2541.8,0.07809165]
[1724871373639,4.60479014,2541.9,2541.8,0.07809165]
[1724871373800,3.93447,2541.7,2541.1,3.93517]
[1724871374000,9.04835289,2541.9,2541.8,0.07809165]
[1724871374222,3.93509,2541.3,2540.7,3.93583]
[1724871374427,3.93479,2541.5,2540.9,7.87106]
[1724871374733,3.07853014,2541.9,2541.0,4.09308004]
[1724871374928,0.67073014,2541.8,2541.0,4.01437621]
[1724871375246,3.93447,2541.7,2541.0,4.01437621]
[1724871375562,3.9353,2541.1,2541.0,0.07905621]
[1724871375700,2.4078,2541.2,2541.0,0.07905621]
[1724871375701,10.27821,2541.2,2541.0,0.07905621]
[1724871375903,3.93604,2540.7,2540.1,7.46145]
[1724871376154,3.93578,2540.8,2540.1,7.46145]
[1724871376155,0.67073014,2540.6,2540.2,4.01738832]
[1724871376361,0.67073014,2540.6,2540.2,0.08076832]
[1724871377004,2.4078,2541.1,2540.5,3.93612]
[1724871377404,2.4078,2541.1,2540.6,0.08028566]
[1724871377405,3.07853014,2541.1,2540.6,0.08028566]
[1724871377708,0.70137701,2541.0,2540.6,0.08028566]
[1724871377908,5.30765715,2541.0,2540.6,0.08028566]
[1724871378139,5.30765715,2541.0,2540.5,3.93617]
[1724871378140,1.37210715,2541.0,2540.5,3.93617]
[1724871378361,0.67073014,2541.0,2540.6,3.93599]
[1724871378647,0.67073014,2541.0,2540.6,0.08098428]
[1724871378850,6.34311,2541.1,2540.6,0.08098428]
[1724871378851,2.4078,2541.1,2540.6,0.08098428]
[1724871379150,3.49985871,2541.5,2540.8,3.9357]
[1724871379151,0.49985871,2541.5,2540.8,3.9357]
[1724871379303,4.43463871,2541.5,2540.9,0.0787026]
[1724871379505,6.94524014,2541.6,2541.0,0.08046113]
[1724871379506,2.3399,2541.6,2541.0,0.08046113]
[1724871379732,2.3399,2541.6,2541.3,3.93497]
[1724871379935,2.3399,2541.6,2541.1,4.01388517]
[1724871380251,2.3399,2541.6,2540.9,3.93551]
[1724871380252,3.93468,2541.5,2541.4,0.07991781]
[1724871380452,7.13624348,2541.6,2540.9,3.93551]
[1724871380604,2.96771348,2541.6,2541.3,3.93499]
[1724871380804,2.3399,2541.6,2541.3,3.93499]
[1724871381017,2.3399,2541.6,2541.4,0.0797756]
[1724871381270,2.96771348,2541.6,2541.4,0.0797756]
[1724871381441,2.96771348,2541.6,2541.2,3.93513]
[1724871381442,4.05135483,2541.6,2541.1,3.93519]
[1724871381769,11.80497,2541.3,2541.2,0.08001676]
[1724871381926,7.86998,2541.3,2541.2,0.08001676]
[1724871382106,3.93554,2541.0,2540.3,3.9364]
[1724871382459,3.93562,2540.9,2540.4,0.07561962]
[1724871383410,3.93577,2540.8,2540.4,0.07561962]
[1724871383637,8.658781,2540.8,2540.4,0.07561962]
[1724871383880,3.93611,2540.6,2539.9,3.93703]
[1724871384188,3.93587,2540.8,2539.8,2.3462]
[1724871384395,7.32178273,2542.3,2540.3,3.9364]
[1724871384396,3.93508,2541.3,2540.3,3.9364]
[1724871384593,3.93498,2541.4,2540.7,3.93584]
[1724871384878,6.39821,2541.6,2541.0,3.93534]
[1724871385036,3.93484,2541.4,2540.8,4.01077703]
[1724871385235,3.93509,2541.3,2541.1,0.0747752]
[1724871385434,3.93515,2541.2,2540.7,3.93591]
[1724871385692,3.93499,2541.4,2540.7,3.93579]
[1724871385981,3.93499,2541.4,2540.8,0.07513703]
[1724871385982,3.9354,2541.1,2540.8,0.07513703]
[1724871386135,3.93555,2541.0,2540.8,0.07513703]
[1724871386330,4.41357895,2541.0,2540.5,3.93622]
[1724871386577,4.41357895,2541.0,2540.6,0.07548797]
[1724871386578,2.4636,2540.9,2540.6,0.07548797]
[1724871386745,3.93578,2540.8,2540.6,0.07548797]
[1724871386948,3.93578,2540.8,2540.3,3.9364]
[1724871387154,3.93576,2540.8,2540.7,0.07536733]
[1724871387386,3.93631,2540.5,2539.9,3.93713]
[1724871387604,9.89970372,2540.8,2539.4,3.93782]
[1724871387605,3.936,2540.7,2539.4,2.37023433]
[1724871387759,2.2845,2540.8,2540.4,3.93624]
[1724871387957,7.87079,2541.1,2540.4,3.93624]
[1724871387958,3.93534,2541.1,2540.4,3.93624]
[1724871388205,6.89970372,2541.2,2540.4,3.93624]
[1724871388206,7.87135,2540.9,2540.5,0.07589713]
[1724871388424,3.93607,2540.6,2540.5,0.07589713]
[1724871388720,3.93586,2540.8,2540.5,0.07589713]
[1724871389017,4.49245645,2540.9,2540.0,3.93688]
[1724871389018,3.93617,2540.6,2540.0,3.93688]
[1724871389160,3.93635,2540.5,2539.5,0.23702343]
[1724871389363,4.43022151,2540.7,2540.1,0.07635544]
[1724871389599,4.43022151,2540.7,2539.3,3.0]
[1724871389600,2.2845,2540.6,2539.9,3.93716]
[1724871389774,2.2845,2540.6,2539.4,3.93783]
[1724871389775,2.2845,2540.0,2539.4,3.93783]
[1724871389990,6.45007,2540.0,2539.3,3.93807]
[1724871390201,3.06975645,2540.0,2538.8,3.93876]
[1724871390395,3.93803,2539.4,2538.8,7.87754]
[1724871390715,7.87548,2539.6,2539.0,3.93854]
[1724871390862,3.93772,2539.6,2539.0,3.93854]
[1724871391065,3.9378,2539.5,2539.0,3.93854]
[1724871391271,2.2845,2539.4,2538.6,3.93907]
[1724871391526,2.2845,2539.4,2538.4,3.93939]
[1724871391527,3.93853,2539.1,2538.4,3.93939]
[1724871391738,8.32656365,2539.1,2538.5,3.93925]
[1724871391862,3.93878,2538.9,2538.2,3.93969]
[1724871392064,3.93893,2538.8,2538.2,7.8794]
[1724871392313,6.22355,2538.7,2538.2,3.93969]
[1724871392615,1.17916145,2538.6,2537.9,3.94026]
[1724871392915,0.622355,2538.6,2538.1,3.93991]
[1724871393217,0.622355,2538.6,2538.1,7.87977]
[1724871393385,6.2236,2538.7,2538.3,3.93961]
[1724871393386,2.2845,2538.7,2538.3,3.93961]
[1724871393568,2.2845,2538.7,2538.3,3.93955]
[1724871393764,2.95071314,2538.7,2538.3,3.93955]
[1724871395419,2.2845,2539.5,2539.1,3.93832]
[1724871395727,2.2845,2539.5,2538.4,0.07879026]
[1724871395728,2.2845,2539.5,2538.9,3.93861]
[1724871395886,6.844487,2539.5,2538.9,3.93865]
[1724871396088,6.22229,2539.5,2538.9,3.93865]
[1724871396399,2.2845,2539.5,2539.0,3.93854]
[1724871396733,2.4807,2540.0,2539.3,3.93799]
[1724871396940,2.72877,2540.0,2538.9,3.93861]
[1724871397231,3.9376,2539.7,2539.0,3.93853]
[1724871397431,3.93811,2539.3,2538.7,3.93891]
[1724871397641,4.210067,2539.9,2538.0,3.94007]
[1724871397642,6.21432,2539.2,2538.0,3.94007]
[1724871397792,2.79692018,2539.2,2538.4,3.93947]
[1724871397994,2.276,2539.2,2538.7,3.93901]
[1724871398225,3.93841,2539.1,2538.4,7.87878]
[1724871398386,4.559827,2539.1,2538.5,3.9392]
[1724871398613,4.559827,2539.1,2538.4,3.93935]
[1724871398801,0.6835827,2539.0,2538.4,3.93935]
[1724871399212,0.6835827,2539.0,2538.3,3.9396]
[1724871399213,7.87765,2538.9,2538.3,3.9396]
[1724871399495,3.9388,2538.9,2538.3,3.9396]
[1724871399692,3.93846,2539.1,2537.5,5.2534]
[1724871399693,3.93846,2539.1,2538.5,3.93932]
[1724871399929,3.93846,2539.1,2538.5,3.93924]
[1724871400138,2.276,2539.2,2538.7,3.93897]
[1724871400290,2.276,2539.2,2538.1,3.93989]
[1724871400492,2.276,2539.2,2538.5,3.93933]
[1724871400740,2.452,2539.6,2539.2,3.93815]
[1724871400887,3.93779,2539.5,2538.8,3.93877]
[1724871401095,2.452,2539.6,2538.8,3.93875]
[1724871401525,0.41249591,2539.4,2538.9,3.93856]
[1724871402050,0.41249591,2539.4,2538.7,3.93888]
[1724871402051,4.35051591,2539.4,2538.7,3.93888]
[1724871402191,0.41249591,2539.4,2539.0,0.0738695]
[1724871402390,0.41249591,2539.4,2538.7,0.393888]
[1724871402694,0.41249591,2539.4,2538.3,0.79695668]
[1724871403001,0.41249591,2539.4,2539.0,3.93847]
[1724871403414,0.41249591,2539.4,2539.1,0.0737487]
[1724871403633,0.41249591,2539.4,2539.3,3.93809]
[1724871403823,0.41249591,2539.4,2539.2,3.93824]
[1724871403991,0.41249591,2539.4,2539.3,0.07350714]
[1724871404193,10.61430959,2539.4,2539.3,0.07350714]
[1724871404388,10.61430959,2539.4,2538.3,0.79695668]
[1724871404389,6.67637959,2539.4,2538.9,3.93863]
[1724871404634,6.38995,2539.4,2538.8,3.93876]
[1724871404937,3.93809,2539.3,2538.9,0.07152871]
[1724871405295,3.93833,2539.2,2538.9,0.07152871]
[1724871405495,3.93833,2539.2,2538.3,0.3951]
[1724871405496,3.090995,2539.4,2538.5,3.9393]
[1724871405731,3.090995,2539.4,2538.9,3.93859]
[1724871405934,7.028945,2539.4,2539.0,0.07146067]
[1724871406434,3.9384,2539.1,2539.0,0.07146067]
[1724871406635,3.93858,2539.0,2538.5,3.93921]
[1724871406840,2.452,2538.9,2538.3,3.93954]
[1724871406997,7.87784,2538.8,2538.6,0.07195612]
[1724871407192,4.972004,2538.7,2537.9,3.94016]
[1724871407397,3.93902,2538.7,2537.9,3.94014]
[1724871407895,6.39073,2538.9,2537.3,3.94118]
[1724871408091,3.93903,2538.7,2538.2,3.93969]
[1724871408320,3.93903,2538.7,2537.7,4.33555]
[1724871408321,3.93921,2538.6,2537.9,3.94015]
[1724871408655,3.93887,2538.8,2538.2,3.9397]
[1724871408838,3.93887,2538.8,2538.3,3.93956]
[1724871409133,2.452,2538.9,2538.5,3.93931]
[1724871409332,7.0692,2538.9,2538.3,3.93954]
[1724871409629,3.93931,2538.6,2538.1,3.93983]
[1724871409843,4.333241,2538.6,2538.1,3.93983]
[1724871410255,4.333241,2538.6,2537.7,0.3951]
[1724871410256,2.452,2538.5,2537.7,0.3951]
[1724871410411,2.452,2538.5,2537.4,3.94101]
[1724871410412,3.93957,2538.4,2537.9,3.94026]
[1724871410751,3.93957,2538.4,2537.8,3.94029]
[1724871410938,7.87915,2538.4,2537.7,3.94046]
[1724871411139,3.93957,2538.4,2537.9,3.94025]
[1724871411311,3.93891,2538.8,2538.1,3.93989]
[1724871411511,3.93891,2538.8,2538.1,4.333789]
[1724871411708,3.93891,2538.8,2538.1,3.9398]
[1724871412144,3.93903,2538.7,2538.1,3.9398]
[1724871412354,3.93981,2538.2,2537.7,3.94042]
[1724871412538,3.93996,2538.1,2537.5,3.94077]
[1724871412724,8.667725,2538.2,2537.3,3.9411]
[1724871412924,3.93986,2538.2,2537.5,3.94075]
[1724871413128,3.94011,2538.0,2537.3,7.88218]
[1724871413329,4.333846,2538.2,2537.5,3.94087]
[1724871413734,7.87978,2538.2,2537.5,3.94087]
[1724871413877,10.5281239,2538.6,2537.3,3.94112]
[1724871413878,3.93997,2538.1,2537.4,3.94101]
[1724871414080,3.94036,2537.9,2536.8,2.6485]
[1724871414289,3.94036,2537.9,2537.3,3.94109]
[1724871414776,2.452,2538.0,2537.4,3.941]
[1724871415005,3.93939,2538.5,2537.4,0.788209]
[1724871415154,2.452,2538.4,2537.8,3.94027]
[1724871415347,3.93965,2538.3,2537.6,3.94061]